fUSD/lending_fUSD_20260615
["ID","MTS","AMOUNT","RATE_DAILY","PERIOD"]
[425109818,1781516851000,357.11,0.00012908,2]
[425109819,1781516871000,579.59,0.00012888,2]
[425109820,1781516923000,1137.56768319,0.00012785,2]
[425109822,1781516954000,-402.49454754,0.00013009,2]
[425109823,1781516959000,2135.34101672,0.00012997,2]
[425109824,1781516966000,-414.21639084,0.00013009,2]
[425109826,1781516966000,-500.0,0.00013009,2]
[425109825,1781516966000,-500.0,0.00013009,2]
[425109828,1781516966000,-500.0,0.00013009,2]
[425109829,1781516966000,-500.0,0.00013009,2]
[425109830,1781516966000,-482.27455565,0.00013009,2]
[425109827,1781516966000,-500.0,0.00013009,2]
[425109831,1781516977000,1335.74,0.00012829,2]
[425109860,1781517032000,-500.0,0.00013009,2]
[425109858,1781517032000,-500.0,0.00013009,2]
[425109861,1781517032000,-500.0,0.00013009,2]
[425109859,1781517032000,-500.0,0.00013009,2]
[425109863,1781517032000,-500.0,0.00013009,2]
[425109862,1781517032000,-500.0,0.00013009,2]
[425109872,1781517032000,-500.0,0.00013009,2]
[425109868,1781517032000,-500.0,0.00013009,2]
[425109865,1781517032000,-472.60494984,0.00013009,2]
[425109867,1781517032000,-500.0,0.00013009,2]
[425109869,1781517032000,-500.0,0.00013009,2]
[425109857,1781517032000,-500.0,0.00013009,2]
[425109864,1781517032000,-27.39505016,0.00013009,2]
[425109856,1781517032000,-500.0,0.00013009,2]
[425109851,1781517032000,-494.39505016,0.00013009,2]
[425109855,1781517032000,-500.0,0.00013009,2]
[425109853,1781517032000,-500.0,0.00013009,2]
[425109849,1781517032000,-487.88917133,0.00013009,2]
[425109854,1781517032000,-500.0,0.00013009,2]
[425109880,1781517032000,-107.93629225,0.00013009,2]
[425109850,1781517032000,-500.0,0.00013009,2]
[425109848,1781517032000,-12.11082867,0.00013009,2]
[425109846,1781517032000,-19.69305565,0.00013009,2]
[425109847,1781517032000,-480.30694435,0.00013009,2]
[425109845,1781517032000,-465.72544435,0.00013009,2]
[425109843,1781517032000,-500.0,0.00013009,2]
[425109844,1781517032000,-34.27455565,0.00013009,2]
[425109842,1781517032000,-17.72544435,0.00013009,2]
[425109852,1781517032000,-5.60494984,0.00013009,2]
[425109876,1781517032000,-500.0,0.00013009,2]
[425109874,1781517032000,-500.0,0.00013009,2]
[425109908,1781517032000,-503.57,0.00013013,2]
[425109916,1781517032000,-824.83,0.00013285,2]
[425109913,1781517032000,-323.93990001,0.00013285,2]
[425109914,1781517032000,-348.50366075,0.00013285,2]
[425109915,1781517032000,-1190.69306236,0.00013285,2]
[425109910,1781517032000,-150.0,0.0001314,2]
[425109911,1781517032000,-3002.05911402,0.00013285,2]
[425109912,1781517032000,-487.08074062,0.00013285,2]
[425109909,1781517032000,-166.66,0.00013055,2]
[425109870,1781517032000,-500.0,0.00013009,2]
[425109907,1781517032000,-357.94870094,0.00013011,2]
[425109906,1781517032000,-525.79675041,0.00013011,2]
[425109903,1781517032000,-150.0,0.00013009,2]
[425109904,1781517032000,-250.0,0.0001301,2]
[425109900,1781517032000,-500.0,0.00013009,2]
[425109905,1781517032000,-2790.87845657,0.00013011,2]
[425109902,1781517032000,-499.99999999,0.00013009,2]
[425109879,1781517032000,-500.0,0.00013009,2]
[425109890,1781517032000,-500.0,0.00013009,2]
[425109885,1781517032000,-500.0,0.00013009,2]
[425109883,1781517032000,-392.06370775,0.00013009,2]
[425109899,1781517032000,-500.0,0.00013009,2]
[425109893,1781517032000,-500.0,0.00013009,2]
[425109897,1781517032000,-160.87845656,0.00013009,2]
[425109887,1781517032000,-500.0,0.00013009,2]
[425109898,1781517032000,-339.12154344,0.00013009,2]
[425109896,1781517032000,-500.0,0.00013009,2]
[425109892,1781517032000,-277.45266987,0.00013009,2]
[425109901,1781517032000,-500.0,0.00013009,2]
[425109894,1781517032000,-500.0,0.00013009,2]
[425109895,1781517032000,-500.0,0.00013009,2]
[425109940,1781517038000,-606.11909187,0.00013371,2]
[425109941,1781517038000,-5261.218,0.00013371,2]
[425109937,1781517038000,-304.68638443,0.00013356,2]
[425109936,1781517038000,-500.0,0.00013356,2]
[425109938,1781517038000,-587.77869252,0.00013356,2]
[425109942,1781517038000,-349.134,0.00013371,2]
[425109944,1781517038000,-1161.09999809,0.000135,2]
[425109939,1781517038000,-500.0,0.00013356,2]
[425109934,1781517038000,-264.1385041,0.00013356,2]
[425109932,1781517038000,-10719.3933,0.00013285,2]
[425109933,1781517038000,-166.66,0.00013318,2]
[425109930,1781517038000,-2120.94075883,0.00013285,2]
[425109931,1781517038000,-7922.48149911,0.00013285,2]
[425109935,1781517038000,-500.0,0.00013356,2]
[425109943,1781517038000,-216.09656886,0.0001338,2]
[425109949,1781517038000,-452.91970207,0.00013699,2]
[425109945,1781517038000,-1165.72,0.00013544,2]
[425109946,1781517038000,-166.66,0.00013582,2]
[425109970,1781517038000,-526.50344134,0.00013699,2]
[425109968,1781517038000,-774.65509088,0.00013699,2]
[425109963,1781517038000,-4220.06771214,0.00013699,2]
[425109958,1781517038000,-3628.92228786,0.00013699,2]
[425109956,1781517038000,-150.99,0.00013699,2]
[425109965,1781517038000,-13115.9785976,0.00013699,2]
[425109954,1781517038000,-24999.99,0.00013699,2]
[425109952,1781517038000,-603.22995743,0.00013699,2]
[425109951,1781517038000,-459.86242947,0.00013699,2]
[425109950,1781517038000,-5096.0947088,0.00013699,2]
[425109948,1781517038000,-3387.88320223,0.00013699,2]
[425109947,1781517038000,-9999.99,0.00013699,2]
[425109961,1781517038000,-2151.0,0.00013699,2]
[425110206,1781517040000,-500.0,0.0001387,2]
[425110224,1781517040000,-55058.6941,0.00013971,2]
[425110212,1781517040000,-500.0,0.0001387,2]
[425110214,1781517040000,-171.04899503,0.0001387,2]
[425110220,1781517040000,-1391264.5302,0.00013871,2]
[425110218,1781517040000,-152.34712758,0.0001387,2]
[425110208,1781517040000,-500.0,0.0001387,2]
[425110222,1781517040000,-500.0,0.0001397,2]
[425110207,1781517040000,-500.0,0.0001387,2]
[425110194,1781517040000,-50974.78695672,0.00013699,2]
[425110205,1781517040000,-3000.0,0.0001387,2]
[425110196,1781517040000,-3230.95,0.00013699,2]
[425110204,1781517040000,-150.0,0.0001387,2]
[425110198,1781517040000,-638.46242184,0.00013798,2]
[425110203,1781517040000,-210.53333334,0.00013861,2]
[425110229,1781517040000,-154.90738069,0.00013971,2]
[425110200,1781517040000,-166.66,0.00013846,2]
[425110177,1781517040000,-904.55815358,0.00013699,2]
[425110180,1781517040000,-1124.98775988,0.00013699,2]
[425110216,1781517040000,-633.81116923,0.0001387,2]
[425110234,1781517040000,-210.01209059,0.00013971,2]
[425110210,1781517040000,-500.0,0.0001387,2]
[425110228,1781517040000,-247.21959036,0.00013971,2]
[425110238,1781517040000,-167.97029649,0.00013985,2]
[425110268,1781517040000,-500.0,0.0001407,2]
[425110266,1781517040000,-500.0,0.0001407,2]
[425110269,1781517040000,-500.0,0.0001407,2]
[425110264,1781517040000,-500.0,0.0001407,2]
[425110260,1781517040000,-500.0,0.0001407,2]
[425110261,1781517040000,-500.0,0.0001407,2]
[425110250,1781517040000,-500.0,0.0001407,2]
[425110257,1781517040000,-292.73771788,0.0001407,2]
[425110256,1781517040000,-500.0,0.0001407,2]
[425110272,1781517040000,-469.63952298,0.0001407,2]
[425110254,1781517040000,-500.0,0.0001407,2]
[425110252,1781517040000,-500.0,0.0001407,2]
[425110236,1781517040000,-152.34712757,0.00013984,2]
[425110226,1781517040000,-1368.7696,0.00013971,2]
[425110240,1781517040000,-250.0,0.00014,2]
[425110232,1781517040000,-152.24084378,0.00013971,2]
[425110244,1781517040000,-500.0,0.0001407,2]
[425110246,1781517040000,-500.0,0.0001407,2]
[425110247,1781517040000,-500.0,0.0001407,2]
[425110242,1781517040000,-171.04899499,0.00014042,2]
[425110290,1781517041000,-500.0,0.0001407,2]
[425110274,1781517041000,-500.0,0.0001407,2]
[425110275,1781517041000,-385.06,0.0001407,2]
[425110279,1781517041000,-500.0,0.0001407,2]
[425110278,1781517041000,-500.0,0.0001407,2]
[425110284,1781517041000,-500.0,0.0001407,2]
[425110286,1781517041000,-500.0,0.0001407,2]
[425110282,1781517041000,-500.0,0.0001407,2]
[425110298,1781517041000,-403219.53747153,0.00014071,2]
[425110288,1781517041000,-500.0,0.0001407,2]
[425110294,1781517041000,-500.0,0.0001407,2]
[425110302,1781517041000,-994.98763226,0.00014071,2]
[425110296,1781517041000,-500.0,0.0001407,2]
[425110306,1781517041000,-539.0799502,0.00014071,2]
[425110308,1781517041000,-728.11,0.00014071,2]
[425110310,1781517041000,-395.16,0.00014071,2]
[425110292,1781517041000,-500.0,0.0001407,2]
[425110460,1781517043000,-600.0,0.00014071,2]
[425110461,1781517043000,-736.90116461,0.00014071,2]
[425110463,1781517043000,-628.26271996,0.00014071,2]
[425110462,1781517043000,-1996.14505178,0.00014071,2]
[425110465,1781517043000,-728.83,0.00014071,2]
[425110467,1781517043000,-527.50353436,0.00014071,2]
[425110464,1781517043000,-395.25999999,0.00014071,2]
[425110466,1781517043000,-404.26499995,0.00014071,2]
[425110468,1781517043000,-87415.38903063,0.00014071,2]
[425110477,1781517046000,-9034.03320983,0.00014071,2]
[425110476,1781517046000,-693.93986636,0.00014071,2]
[425110475,1781517046000,-1041.45,0.00014071,2]
[425110474,1781517046000,-510.7182,0.00014071,2]
[425110478,1781517056000,151.0,0.00012748,2]
[425110479,1781517085000,-10543.96344835,0.00013185,2]
[425110480,1781517102000,-10543.96344835,0.00013185,2]
[425110482,1781517377000,166.66,0.00012554,2]
[425110483,1781517378000,166.66,0.00012819,2]
[425110490,1781517599000,500.0,0.00012985,2]
[425110491,1781517611000,292.89,0.00012645,2]
[425110493,1781517675000,200.0,0.00012656,2]
[425110499,1781517750000,1212.43,0.00012817,2]
[425110500,1781517757000,500.0,0.00012864,2]
[425110502,1781517833000,716.13,0.00012627,2]
[425110503,1781518071000,250.87,0.00012663,2]
[425110504,1781518074000,425.64161456,0.00012985,2]
[425110505,1781518079000,764.78,0.00012663,2]
[425110506,1781518148000,633.81116923,0.00012985,2]
[425110507,1781518152000,171.04899503,0.00012985,2]
[425110508,1781518170000,152.34712758,0.00012985,2]
[425110533,1781518232000,-364.12889698,0.00013083,2]
[425110535,1781518232000,-327.22068477,0.00013083,2]
[425110523,1781518232000,-172.0,0.00013083,2]
[425110521,1781518232000,-166.66,0.00013083,2]
[425110520,1781518232000,-300.80601875,0.00013083,2]
[425110518,1781518232000,-604.11425514,0.00013083,2]
[425110514,1781518232000,-150.0,0.00013056,2]
[425110516,1781518232000,-164.90270495,0.00013083,2]
[425110517,1781518232000,-1379.93753163,0.00013083,2]
[425110515,1781518232000,-210.53333334,0.00013074,2]
[425110513,1781518232000,-162.26,0.00013047,2]
[425110522,1781518232000,-150.0,0.00013083,2]
[425110519,1781518232000,-550.23948953,0.00013083,2]
[425110530,1781518232000,-500.0,0.00013083,2]
[425110524,1781518232000,-1000.0,0.00013083,2]
[425110547,1781518232000,-46858.6695967,0.00013084,2]
[425110527,1781518232000,-342.7741306,0.00013083,2]
[425110531,1781518232000,-500.0,0.00013083,2]
[425110532,1781518232000,-500.0,0.00013083,2]
[425110526,1781518232000,-500.0,0.00013083,2]
[425110528,1781518232000,-500.0,0.00013083,2]
[425110525,1781518232000,-500.0,0.00013083,2]
[425110537,1781518232000,-563.2804691,0.00013083,2]
[425110529,1781518232000,-500.0,0.00013083,2]
[425110551,1781518232000,-542.61816382,0.00013084,2]
[425110540,1781518232000,-225.57094389,0.00013083,2]
[425110550,1781518232000,-498.60816711,0.00013084,2]
[425110542,1781518232000,-41954.82369595,0.00013084,2]
[425110545,1781518232000,-70654.55463922,0.00013084,2]
[425110539,1781518232000,-544.25449165,0.00013083,2]
[425110582,1781518238000,-2936.97005086,0.00013084,2]
[425110583,1781518238000,-49003.357581,0.00013084,2]
[425110584,1781518238000,-5341.04472836,0.00013084,2]
[425110587,1781518238000,-1103.16022683,0.00013084,2]
[425110586,1781518238000,-429728.02960406,0.00013084,2]
[425110588,1781518238000,-1241.49744497,0.00013084,2]
[425110585,1781518238000,-386.1649995,0.00013084,2]
[425110595,1781518240000,-41982.52882605,0.00013084,2]
[425110605,1781518241000,-216.09656886,0.000132,2]
[425110615,1781518241000,-217.6265061,0.00013496,2]
[425110609,1781518241000,-152.34712757,0.00013411,2]
[425110614,1781518241000,-150.0,0.00013496,2]
[425110613,1781518241000,-150.0,0.00013496,2]
[425110608,1781518241000,-166.66,0.00013347,2]
[425110607,1781518241000,-171.04899499,0.00013304,2]
[425110606,1781518241000,-633.81116921,0.00013259,2]
[425110612,1781518241000,-150.0,0.00013496,2]
[425110604,1781518241000,-152.34712757,0.00013198,2]
[425110603,1781518241000,-6288.61,0.00013184,2]
[425110601,1781518241000,-2675.81,0.00013184,2]
[425110599,1781518241000,-167.97029649,0.00013155,2]
[425110600,1781518241000,-163.69,0.00013183,2]
[425110598,1781518241000,-154.90738069,0.00013085,2]
[425110597,1781518241000,-1278445.21317557,0.00013084,2]
[425110596,1781518241000,-297.0302,0.00013084,2]
[425110602,1781518241000,-1000.0,0.00013184,2]
[425110611,1781518241000,-150.0,0.00013488,2]
[425110627,1781518241000,-591.0,0.00013623,2]
[425110610,1781518241000,-150.0,0.00013488,2]
[425110616,1781518241000,-150.0,0.00013496,2]
[425110633,1781518241000,-591.0,0.00013623,2]
[425110635,1781518241000,-591.0,0.00013623,2]
[425110634,1781518241000,-591.0,0.00013623,2]
[425110630,1781518241000,-591.0,0.00013623,2]
[425110623,1781518241000,-245.2777844,0.00013602,2]
[425110621,1781518241000,-633.81116921,0.00013532,2]
[425110624,1781518241000,-152.0,0.00013608,2]
[425110620,1781518241000,-250.0,0.00013496,2]
[425110632,1781518241000,-591.0,0.00013623,2]
[425110619,1781518241000,-150.0,0.00013496,2]
[425110617,1781518241000,-150.0,0.00013496,2]
[425110622,1781518241000,-150.0,0.00013602,2]
[425110628,1781518241000,-591.0,0.00013623,2]
[425110618,1781518241000,-150.0,0.00013496,2]
[425110631,1781518241000,-591.0,0.00013623,2]
[425110625,1781518241000,-166.66,0.00013611,2]
[425110629,1781518241000,-591.0,0.00013623,2]
[425110626,1781518241000,-591.0,0.00013623,2]
[425110666,1781518242000,-500.0,0.00013698,2]
[425110664,1781518242000,-500.0,0.00013698,2]
[425110670,1781518242000,-2887.32,0.00013699,2]
[425110673,1781518242000,-385.06,0.0001377,2]
[425110668,1781518242000,-3230.95,0.00013699,2]
[425110669,1781518242000,-8694.49,0.00013699,2]
[425110671,1781518242000,-34187.0,0.000137,2]
[425110672,1781518242000,-500.0,0.0001377,2]
[425110676,1781518242000,-633.81116921,0.00013806,2]
[425110686,1781518242000,-425.64161455,0.00013943,2]
[425110674,1781518242000,-500.0,0.0001377,2]
[425110683,1781518242000,-1532.8317747,0.00013911,2]
[425110679,1781518242000,-500.0,0.0001391,2]
[425110678,1781518242000,-166.66,0.00013876,2]
[425110677,1781518242000,-152.34712757,0.00013836,2]
[425110684,1781518242000,-105072.2280032,0.00013911,2]
[425110680,1781518242000,-500.0,0.0001391,2]
[425110682,1781518242000,-55648.154839,0.00013911,2]
[425110685,1781518242000,-336.65,0.0001392,2]
[425110667,1781518242000,-299.99,0.00013699,2]
[425110688,1781518242000,-1500.0,0.00014,2]
[425110698,1781518242000,-5528.0,0.000141,3]
[425110694,1781518242000,-200.0,0.00014071,2]
[425110693,1781518242000,-200.0,0.00014071,2]
[425110675,1781518242000,-500.0,0.0001377,2]
[425110665,1781518242000,-500.0,0.00013698,2]
[425110655,1781518242000,-500.0,0.00013698,2]
[425110661,1781518242000,-500.0,0.00013698,2]
[425110692,1781518242000,-500.0,0.0001407,2]
[425110637,1781518242000,-591.0,0.00013623,2]
[425110641,1781518242000,-591.0,0.00013623,2]
[425110638,1781518242000,-591.0,0.00013623,2]
[425110636,1781518242000,-591.0,0.00013623,2]
[425110640,1781518242000,-591.0,0.00013623,2]
[425110639,1781518242000,-591.0,0.00013623,2]
[425110643,1781518242000,-591.0,0.00013623,2]
[425110642,1781518242000,-591.0,0.00013623,2]
[425110644,1781518242000,-591.0,0.00013623,2]
[425110645,1781518242000,-591.0,0.00013623,2]
[425110648,1781518242000,-591.0,0.00013623,2]
[425110660,1781518242000,-500.0,0.00013698,2]
[425110647,1781518242000,-591.0,0.00013623,2]
[425110646,1781518242000,-591.0,0.00013623,2]
[425110651,1781518242000,-150.0,0.00013623,2]
[425110649,1781518242000,-598.86059205,0.00013623,2]
[425110652,1781518242000,-207.5582428,0.00013623,2]
[425110653,1781518242000,-171.04899499,0.00013623,2]
[425110654,1781518242000,-152.34712757,0.00013623,2]
[425110662,1781518242000,-500.0,0.00013698,2]
[425110656,1781518242000,-500.0,0.00013698,2]
[425110657,1781518242000,-500.0,0.00013698,2]
[425110658,1781518242000,-500.0,0.00013698,2]
[425110663,1781518242000,-500.0,0.00013698,2]
[425110659,1781518242000,-500.0,0.00013698,2]
[425110650,1781518242000,-150.0,0.00013623,2]
[425110687,1781518242000,-171.04899499,0.00013943,2]
[425110681,1781518242000,-500.0,0.0001391,2]
[425110689,1781518242000,-250.0,0.00014,2]
[425110726,1781518242000,-200.0,0.00014497,2]
[425110732,1781518242000,-152.34712757,0.00014687,2]
[425110729,1781518242000,-171.04899499,0.00014581,2]
[425110728,1781518242000,-2307.9,0.00014497,2]
[425110723,1781518242000,-1212.43,0.00014419,2]
[425110731,1781518242000,-200.0,0.00014642,2]
[425110725,1781518242000,-152.34712757,0.00014474,2]
[425110727,1781518242000,-394.13,0.00014497,2]
[425110730,1781518242000,-633.81116921,0.00014626,2]
[425110734,1781518242000,-350.0,0.000148,2]
[425110744,1781518242000,-171.04899499,0.000149,2]
[425110742,1781518242000,-425.64161455,0.000149,2]
[425110737,1781518242000,-309.0,0.000149,2]
[425110739,1781518242000,-313.0,0.000149,2]
[425110738,1781518242000,-317.0,0.000149,2]
[425110736,1781518242000,-247.21959036,0.00014897,2]
[425110743,1781518242000,-487.97370602,0.000149,2]
[425110740,1781518242000,-320.0,0.000149,2]
[425110741,1781518242000,-10870.01538874,0.000149,2]
[425110745,1781518242000,-633.81116921,0.000149,2]
[425110752,1781518242000,-160.0,0.00014925,2]
[425110748,1781518242000,-291.7823094,0.00014908,2]
[425110750,1781518242000,-181.4529841,0.00014925,2]
[425110746,1781518242000,-152.34712757,0.000149,2]
[425110691,1781518242000,-500.0,0.00014055,2]
[425110724,1781518242000,-336.65,0.00014473,2]
[425110733,1781518242000,-336.65,0.00014703,2]
[425110735,1781518242000,-336.65,0.00014879,2]
[425110719,1781518242000,-633.81116921,0.00014353,2]
[425110695,1781518242000,-200.0,0.00014071,2]
[425110722,1781518242000,-5528.0,0.000144,5]
[425110690,1781518242000,-152.34712757,0.00014049,2]
[425110696,1781518242000,-151.41782246,0.00014071,2]
[425110697,1781518242000,-633.81116921,0.00014079,2]
[425110699,1781518242000,-319.0,0.00014171,2]
[425110700,1781518242000,-315.0,0.00014171,2]
[425110706,1781518242000,-200.0,0.00014212,2]
[425110705,1781518242000,-200.0,0.00014212,2]
[425110702,1781518242000,-160.0,0.00014199,2]
[425110710,1781518242000,-250.0,0.00014327,2]
[425110701,1781518242000,-255.0,0.00014195,2]
[425110703,1781518242000,-716.13,0.00014205,2]
[425110709,1781518242000,-152.34712757,0.00014262,2]
[425110704,1781518242000,-477.99150398,0.0001421,7]
[425110717,1781518242000,-300.0,0.00014352,2]
[425110721,1781518242000,-200.0,0.00014354,2]
[425110720,1781518242000,-200.0,0.00014354,2]
[425110718,1781518242000,-250.0,0.00014352,2]
[425110716,1781518242000,-284.86667684,0.00014352,2]
[425110715,1781518242000,-2331.8163,0.0001434,2]
[425110713,1781518242000,-1152.05350178,0.0001434,2]
[425110714,1781518242000,-1723.40313887,0.0001434,2]
[425110712,1781518242000,-653.04767209,0.0001434,2]
[425110708,1781518242000,-171.04899499,0.00014262,2]
[425110707,1781518242000,-200.0,0.00014212,2]
[425110711,1781518242000,-247.45879383,0.0001434,2]
[425110778,1781518243000,-2337.770204,0.00014999,2]
[425110775,1781518243000,-500.0,0.00014999,2]
[425110773,1781518243000,-500.0,0.00014999,2]
[425110777,1781518243000,-377.64771788,0.00014999,2]
[425110780,1781518243000,-500.0,0.00014999,2]
[425110783,1781518243000,-500.0,0.00014999,2]
[425110779,1781518243000,-500.0,0.00014999,2]
[425110776,1781518243000,-500.0,0.00014999,2]
[425110782,1781518243000,-500.0,0.00014999,2]
[425110784,1781518243000,-500.0,0.00014999,2]
[425110772,1781518243000,-469.63952298,0.00014999,2]
[425110774,1781518243000,-500.0,0.00014999,2]
[425110771,1781518243000,-500.0,0.00014999,2]
[425110753,1781518243000,-350.0,0.00014926,2]
[425110766,1781518243000,-1126.45563084,0.00014999,5]
[425110763,1781518243000,-500.0,0.00014998,2]
[425110764,1781518243000,-5335.0,0.00014999,5]
[425110761,1781518243000,-151.0,0.00014997,2]
[425110769,1781518243000,-500.0,0.00014999,2]
[425110768,1781518243000,-500.0,0.00014999,2]
[425110759,1781518243000,-500.0,0.00014994,2]
[425110770,1781518243000,-500.0,0.00014999,2]
[425110760,1781518243000,-151.0,0.00014997,2]
[425110758,1781518243000,-500.0,0.00014994,2]
[425110756,1781518243000,-71529.46044581,0.00014989,2]
[425110754,1781518243000,-454.0,0.00014959,2]
[425110755,1781518243000,-500.0,0.00014959,2]
[425110785,1781518243000,-500.0,0.00014999,2]
[425110762,1781518243000,-650.1954961,0.00014998,2]
[425110786,1781518243000,-500.0,0.00014999,2]
[425110781,1781518243000,-500.0,0.00014999,2]
[425110787,1781518243000,-500.0,0.00014999,2]
[425110819,1781518243000,-1578.52607877,0.00015,2]
[425110820,1781518243000,-527.31425,0.00015,2]
[425110817,1781518243000,-1122.52583918,0.0001466,2]
[425110818,1781518243000,-14061.44868336,0.00015,2]
[425110814,1781518243000,-3119.95470525,0.00015,2]
[425110813,1781518243000,-1317.9999,0.00015,2]
[425110812,1781518243000,-400.0,0.00015,2]
[425110808,1781518243000,-300.0,0.00014999,2]
[425110810,1781518243000,-300.0,0.00014999,2]
[425110807,1781518243000,-300.0,0.00014999,2]
[425110805,1781518243000,-300.0,0.00014999,2]
[425110809,1781518243000,-300.0,0.00014999,2]
[425110806,1781518243000,-300.0,0.00014999,2]
[425110804,1781518243000,-300.0,0.00014999,2]
[425110811,1781518243000,-193654.78431308,0.00015,2]
[425110803,1781518243000,-429.88056922,0.00014999,2]
[425110800,1781518243000,-500.0,0.00014999,2]
[425110793,1781518243000,-500.0,0.00014999,2]
[425110789,1781518243000,-500.0,0.00014999,2]
[425110791,1781518243000,-500.0,0.00014999,2]
[425110790,1781518243000,-500.0,0.00014999,2]
[425110792,1781518243000,-500.0,0.00014999,2]
[425110795,1781518243000,-500.0,0.00014999,2]
[425110788,1781518243000,-500.0,0.00014999,2]
[425110796,1781518243000,-500.0,0.00014999,2]
[425110794,1781518243000,-500.0,0.00014999,2]
[425110801,1781518243000,-500.0,0.00014999,2]
[425110799,1781518243000,-500.0,0.00014999,2]
[425110798,1781518243000,-500.0,0.00014999,2]
[425110802,1781518243000,-500.0,0.00014999,2]
[425110797,1781518243000,-500.0,0.00014999,2]
[425110822,1781518244000,-612.42767606,0.00015,2]
[425110824,1781518246000,-1083.61878711,0.0001466,2]
[425110826,1781518246000,-168.51224072,0.00015,2]
[425110825,1781518246000,-1068.81105302,0.0001466,2]
[425110828,1781518246000,-53091.99302448,0.00015,2]
[425110827,1781518246000,-8417.11909077,0.00015,2]
[425110829,1781518246000,-0.00783551,0.00015,2]
[425110830,1781518247000,-52072.4982171,0.00015,2]
[425110837,1781518326000,2487.68642089,0.00012984,2]
[425110841,1781518836000,-1175.06,0.00012348,2]
[425110842,1781518890000,-150.0,0.00012385,2]
[425110843,1781518943000,-200.0,0.00012422,2]
[425110844,1781518996000,-8712.89056585,0.000126,2]
[425110845,1781519014000,-8712.89056585,0.000126,2]
[425110848,1781519129000,-800.0,0.00012293,2]
[425110849,1781519182000,-166.66,0.00011543,2]
[425110850,1781519236000,-166.66,0.00011786,2]
[425110851,1781519289000,-948.0,0.00011839,2]
[425110852,1781519342000,-5528.0,0.00012,2]
[425110853,1781519360000,-5528.0,0.00012,2]
[425110855,1781519377000,158.74,9.926e-05,2]
[425110854,1781519377000,-166.66,0.00012029,2]
[425110858,1781519399000,-2546.34580391,0.000119,2]
[425110857,1781519399000,-2546.34580391,0.000119,2]
[425110856,1781519399000,-2546.34580391,0.000119,2]
[425110859,1781519430000,-1613.0535,0.000119,2]
[425110886,1781519432000,-500.0,0.00012099,2]
[425110887,1781519432000,-500.0,0.00012099,2]
[425110889,1781519432000,-500.0,0.00012099,2]
[425110891,1781519432000,-500.0,0.00012099,2]
[425110893,1781519432000,-500.0,0.00012099,2]
[425110896,1781519432000,-500.0,0.00012099,2]
[425110892,1781519432000,-500.0,0.00012099,2]
[425110894,1781519432000,-199.99999999,0.00012099,2]
[425110898,1781519432000,-156.0,0.00012137,2]
[425110897,1781519432000,-500.0,0.00012099,2]
[425110888,1781519432000,-500.0,0.00012099,2]
[425110901,1781519432000,-500.0,0.00012149,2]
[425110895,1781519432000,-500.0,0.00012099,2]
[425110899,1781519432000,-500.0,0.00012149,2]
[425110900,1781519432000,-333.01058392,0.00012149,2]
[425110903,1781519432000,-287.24950974,0.00012149,2]
[425110905,1781519432000,-500.0,0.00012149,2]
[425110904,1781519432000,-500.0,0.00012149,2]
[425110902,1781519432000,-204.20061394,0.00012149,2]
[425110885,1781519432000,-500.0,0.00012099,2]
[425110883,1781519432000,-500.0,0.00012099,2]
[425110881,1781519432000,-500.0,0.00012099,2]